bitfinex-derivatives/quotes_SOLF0:USTF0_20260311
["timestamp","ask_amount","ask_price","bid_price","bid_amount"]
[1773263128431,4.31396894,87.461,87.41,2.43687296]
[1773263129322,4.31396894,87.461,87.419,10.294]
[1773263130633,4.32796254,87.459,87.419,10.294]
[1773263131330,10.29,87.458,87.419,10.294]
[1773263131729,14.61796254,87.458,87.419,10.294]
[1773263132729,4.32287412,87.457,87.419,10.294]
[1773263132926,4.32287412,87.454,87.411,10.295]
[1773263134532,4.32287412,87.454,87.418,10.294]
[1773263135423,4.32287412,87.454,87.373,21.20948709]
[1773263135424,4.29700812,87.479,87.43,2.43687296]
[1773263135823,4.29700812,87.479,87.42,2.43687296]
[1773263136438,4.29797547,87.468,87.381,20.598]
[1773263136740,4.29797547,87.468,87.41,2.43687296]
[1773263137432,4.29797547,87.459,87.414,10.295]
[1773263138334,4.29243125,87.457,87.414,10.295]
[1773263140735,4.29238817,87.472,87.43,2.43687296]
[1773263141327,2.43687296,87.49,87.43,2.43687296]
[1773263141531,4.29238328,87.489,87.45,2.43687296]
[1773263142336,4.2630481,87.487,87.451,10.29]
[1773263142629,4.2630481,87.487,87.45,2.43687296]
[1773263143338,4.2630481,87.485,87.45,2.43687296]
[1773263144434,4.2630481,87.485,87.444,10.291]
[1773263146734,4.25976058,87.482,87.444,10.291]
[1773263153941,4.2724856,87.48,87.435,10.292]
[1773263155338,10.287,87.479,87.435,10.292]
[1773263155541,4.27039649,87.478,87.435,10.292]
[1773263159050,10.288,87.476,87.435,10.292]
[1773263159245,14.57262918,87.476,87.435,10.292]
[1773263159550,4.28462918,87.475,87.435,10.292]
[1773263160249,4.28471139,87.473,87.435,10.292]
[1773263160449,4.28471139,87.473,87.44,10.292]
[1773263161241,4.28471139,87.473,87.433,10.292]
[1773263161440,4.28471139,87.469,87.41,2.43925633]
[1773263161640,4.28471139,87.467,87.4,2.43925633]
[1773263161846,8.55154734,87.466,87.43,2.43925633]
[1773263162052,4.28471139,87.493,87.45,2.43925633]
[1773263162243,4.28471139,87.493,87.44,2.43925633]
[1773263162444,4.29041882,87.485,87.448,10.291]
[1773263163351,4.29041882,87.485,87.45,2.43925633]
[1773263163550,4.29041882,87.485,87.419,3.9017652]
[1773263163753,4.01826705,87.484,87.44,6.34102153]
[1773263164051,4.01826705,87.484,87.441,3.9017652]
[1773263164247,4.01826705,87.484,87.444,14.1927652]
[1773263165348,10.287,87.482,87.444,14.1927652]
[1773263166052,4.01826705,87.481,87.444,10.291]
[1773263166850,4.01826705,87.481,87.445,3.9017652]
[1773263168655,4.01826705,87.481,87.446,10.291]
[1773263169468,4.01826705,87.481,87.44,3.9017652]
[1773263170557,4.01826705,87.481,87.441,3.9017652]
[1773263172458,14.4,87.497,87.427,3.9017652]
[1773263172459,4.01826705,87.475,87.427,3.9017652]
[1773263172648,4.01826705,87.486,87.441,3.9017652]
[1773263173057,10.287,87.484,87.443,10.291]
[1773263173254,4.01826705,87.486,87.444,3.9017652]
[1773263174458,4.01826705,87.485,87.444,3.9017652]
[1773263176855,14.4,87.497,87.411,21.20948709]
[1773263176856,4.01826705,87.48,87.435,3.9017652]
[1773263177051,4.01826705,87.479,87.424,3.9017652]
[1773263177655,4.01826705,87.479,87.433,3.9017652]
[1773263179357,4.01826705,87.479,87.43,2.43925633]
[1773263179358,10.287,87.478,87.436,3.9017652]
[1773263180664,3.89557902,87.469,87.405,3.98676426]
[1773263180874,3.89557902,87.469,87.411,3.98676426]
[1773263181462,3.89557902,87.468,87.425,3.98676426]
[1773263182358,3.89557902,87.468,87.427,3.98676426]
[1773263184357,10.289,87.465,87.427,3.98676426]
[1773263184557,8.49092764,87.464,87.427,3.98676426]
[1773263184753,8.49092764,87.463,87.427,3.98676426]
[1773263184958,8.49092764,87.462,87.427,3.98676426]
[1773263185161,8.49092764,87.461,87.427,3.98676426]
[1773263185360,3.89557902,87.466,87.427,3.98676426]
[1773263185556,12.38650666,87.465,87.427,3.98676426]
[1773263185765,3.89557902,87.45,87.408,3.98676426]
[1773263186258,10.291,87.448,87.409,10.295]
[1773263186464,10.291,87.448,87.409,14.28176426]
[1773263188366,10.292,87.442,87.41,3.98676426]
[1773263190360,2.43925633,87.46,87.41,3.98676426]
[1773263190565,3.89557902,87.462,87.41,3.98676426]
[1773263190959,3.89557902,87.462,87.411,3.98676426]
[1773263191156,3.89557902,87.462,87.425,3.98676426]
[1773263191157,10.289,87.46,87.425,3.98676426]
[1773263193064,10.289,87.46,87.41,2.43925633]
[1773263193263,3.89557902,87.454,87.41,3.98676426]
[1773263194064,3.89557902,87.442,87.398,3.98676426]
[1773263195370,10.292,87.434,87.398,3.98676426]
[1773263195572,3.89557902,87.442,87.398,3.98676426]
[1773263196871,10.292,87.441,87.405,10.296]
[1773263199268,3.89557902,87.432,87.385,3.98676426]
[1773263200369,14.18857902,87.432,87.388,14.1236934]
[1773263200569,14.18857902,87.432,87.389,3.8256934]
[1773263201367,14.18857902,87.432,87.392,10.297]
[1773263202172,14.18857902,87.432,87.394,10.297]
[1773263214997,4.05046408,87.431,87.394,10.297]
[1773263215899,4.05046408,87.431,87.396,14.04846524]
[1773263216103,4.05046408,87.431,87.397,3.75146524]
[1773263216294,4.05046408,87.449,87.397,3.75146524]
[1773263217499,10.292,87.437,87.399,3.75146524]
[1773263218904,4.05046408,87.439,87.399,3.75146524]
[1773263220502,10.292,87.436,87.399,3.75146524]
[1773263220899,4.05046408,87.453,87.42,3.75146524]
[1773263221505,4.05046408,87.453,87.413,3.75146524]
[1773263222206,4.05046408,87.451,87.413,3.75146524]
[1773263222406,4.05046408,87.45,87.413,3.75146524]
[1773263223405,14.34146408,87.45,87.413,3.75146524]
[1773263224302,8.44713954,87.449,87.413,3.75146524]
[1773263224502,8.44713954,87.448,87.413,3.75146524]
[1773263224701,12.49760362,87.449,87.413,3.75146524]
[1773263224903,8.44713954,87.448,87.413,3.75146524]
[1773263225402,8.44713954,87.447,87.416,3.75146524]
[1773263225603,4.05046408,87.449,87.416,3.75146524]
[1773263225808,8.46762931,87.448,87.416,3.75146524]
[1773263226001,8.46762931,87.447,87.416,3.75146524]
[1773263226203,8.46799714,87.446,87.416,3.75146524]
[1773263226404,8.46799714,87.448,87.418,10.294]
[1773263226607,8.46799714,87.447,87.418,10.294]
[1773263226808,8.46799714,87.446,87.418,10.294]
[1773263227007,8.46799714,87.448,87.418,10.294]
[1773263227308,8.46799714,87.447,87.418,10.294]
[1773263227508,8.46799714,87.446,87.418,10.294]
[1773263227711,4.05046408,87.449,87.418,10.294]
[1773263229803,4.05046408,87.449,87.416,3.75146524]
[1773263230005,14.4,87.467,87.42,2.44212249]
[1773263230213,4.05046408,87.466,87.421,3.75146524]
[1773263230412,4.05046408,87.46,87.421,3.75146524]
[1773263230809,4.05046408,87.458,87.421,3.75146524]
[1773263231012,12.57205968,87.457,87.421,3.75146524]
[1773263231212,8.5215956,87.456,87.421,3.75146524]
[1773263231410,8.5215956,87.455,87.421,3.75146524]
[1773263231609,8.5215956,87.454,87.421,3.75146524]
[1773263231808,8.5215956,87.453,87.421,3.75146524]
[1773263232013,4.05046408,87.457,87.421,3.75146524]
[1773263232214,12.57188083,87.456,87.421,3.75146524]
[1773263232409,8.52141675,87.455,87.421,3.75146524]
[1773263232615,8.52141675,87.454,87.421,3.75146524]
[1773263232814,8.52141675,87.453,87.421,3.75146524]
[1773263233014,4.05046408,87.456,87.421,3.75146524]
[1773263233219,8.52123795,87.455,87.421,3.75146524]
[1773263233412,8.52123795,87.454,87.421,3.75146524]
[1773263233614,4.05046408,87.456,87.421,3.75146524]
[1773263233816,8.52106072,87.455,87.421,3.75146524]
[1773263234012,8.52106072,87.454,87.422,10.294]
[1773263234212,8.52106072,87.453,87.421,3.75146524]
[1773263234413,4.05046408,87.456,87.421,3.75146524]
[1773263234613,8.52106578,87.455,87.421,3.75146524]
[1773263234811,8.52106578,87.454,87.421,3.75146524]
[1773263235118,8.52106578,87.453,87.421,3.75146524]
[1773263235416,4.05046408,87.456,87.421,3.75146524]
[1773263235616,8.52070642,87.455,87.421,3.75146524]
[1773263235816,8.52070642,87.454,87.421,3.75146524]
[1773263236016,8.52070642,87.453,87.421,3.75146524]
[1773263236214,4.05046408,87.455,87.421,3.75146524]
[1773263236412,8.52132944,87.454,87.421,3.75146524]
[1773263236612,8.52132944,87.453,87.421,3.75146524]
[1773263236815,4.05046408,87.455,87.421,3.75146524]
[1773263237116,8.52132944,87.454,87.421,3.75146524]
[1773263237319,8.52132944,87.453,87.421,3.75146524]
[1773263237616,8.52132944,87.452,87.421,3.75146524]
[1773263237816,4.05046408,87.455,87.421,3.75146524]
[1773263238016,8.52207952,87.454,87.421,3.75146524]
[1773263238314,4.05046408,87.455,87.421,3.75146524]
[1773263238315,8.52207952,87.453,87.421,3.75146524]
[1773263238511,8.52207952,87.452,87.421,3.75146524]
[1773263238711,4.05046408,87.455,87.421,3.75146524]
[1773263238911,8.522057,87.454,87.421,3.75146524]
[1773263239112,8.522057,87.453,87.421,3.75146524]
[1773263239313,4.05046408,87.455,87.421,3.75146524]
[1773263239512,8.52170879,87.454,87.421,3.75146524]
[1773263239713,8.52170879,87.453,87.421,3.75146524]
[1773263239920,4.05046408,87.455,87.421,3.75146524]
[1773263240116,12.34658075,87.454,87.421,3.75146524]
[1773263240315,8.52170879,87.453,87.421,3.75146524]
[1773263240516,3.82487196,87.454,87.421,3.75146524]
[1773263240819,8.52136292,87.453,87.421,3.75146524]
[1773263241012,3.82487196,87.454,87.421,3.75146524]
[1773263241218,8.52136292,87.453,87.421,3.75146524]
[1773263241410,3.82487196,87.454,87.421,3.75146524]
[1773263241610,8.52102439,87.453,87.421,3.75146524]
[1773263241813,3.82487196,87.454,87.421,3.75146524]
[1773263242013,8.52102439,87.453,87.421,3.75146524]
[1773263242307,3.82487196,87.454,87.421,3.75146524]
[1773263242511,8.52069667,87.453,87.421,3.75146524]
[1773263242712,3.82487196,87.454,87.421,3.75146524]
[1773263242914,8.52069667,87.453,87.421,3.75146524]
[1773263243213,3.82487196,87.454,87.421,3.75146524]
[1773263243415,8.52037857,87.453,87.421,3.75146524]
[1773263243614,3.82487196,87.454,87.421,3.75146524]
[1773263243814,8.52037857,87.453,87.421,3.75146524]
[1773263244115,3.82487196,87.454,87.421,3.75146524]
[1773263244316,8.52037857,87.453,87.421,3.75146524]
[1773263244518,3.82487196,87.454,87.421,3.75146524]
[1773263244713,8.52007044,87.453,87.421,3.75146524]
[1773263244914,3.82487196,87.454,87.421,3.75146524]
[1773263245213,22.6349424,87.453,87.421,3.75146524]
[1773263245514,14.11487196,87.453,87.421,3.75146524]
[1773263246117,3.82487196,87.452,87.421,3.75146524]
[1773263253526,10.29,87.453,87.421,3.75146524]
[1773263254427,3.82487196,87.474,87.441,4.14302242]
[1773263254626,3.82487196,87.472,87.441,4.14302242]
[1773263254931,8.51972618,87.471,87.441,4.14302242]
[1773263255226,8.51972618,87.47,87.441,4.14302242]
[1773263255430,8.51972618,87.469,87.441,4.14302242]
[1773263255729,8.51972618,87.468,87.441,4.14302242]
[1773263255929,3.82487196,87.472,87.441,4.14302242]
[1773263256131,8.51868913,87.471,87.441,4.14302242]
[1773263256333,8.51868913,87.47,87.441,4.14302242]
[1773263256531,8.51868913,87.469,87.441,4.14302242]
[1773263256733,3.82487196,87.472,87.441,4.14302242]
[1773263256941,8.51769846,87.471,87.441,4.14302242]
[1773263257134,8.51769846,87.47,87.441,4.14302242]
[1773263257333,8.51769846,87.469,87.441,4.14302242]
[1773263257535,3.82487196,87.472,87.441,4.14302242]
[1773263257734,8.51693345,87.471,87.441,4.14302242]
[1773263258034,8.51693345,87.47,87.441,4.14302242]
[1773263258236,8.51693345,87.469,87.441,4.14302242]
[1773263258532,8.51693345,87.468,87.441,4.14302242]
[1773263258832,3.82487196,87.472,87.441,4.14302242]
[1773263259028,10.289,87.466,87.441,4.14302242]
[1773263259633,3.82487196,87.471,87.441,4.14302242]
[1773263259936,8.60162955,87.472,87.441,4.14302242]
[1773263260136,3.82487196,87.478,87.441,4.14302242]
[1773263260428,3.82487196,87.476,87.441,4.14302242]
[1773263260632,3.87074968,87.474,87.441,4.14302242]
[1773263261129,14.15874968,87.473,87.441,4.14302242]
[1773263265336,8.59965994,87.481,87.442,3.86205457]
[1773263265539,3.87074968,87.48,87.442,3.86205457]
[1773263265944,3.87074968,87.479,87.442,3.86205457]
[1773263266441,3.87074968,87.479,87.443,14.15305457]
[1773263267833,3.87074968,87.479,87.444,3.86205457]
[1773263270645,3.87074968,87.479,87.433,3.94440473]
[1773263270845,4.16636187,87.477,87.433,3.94440473]
[1773263271236,8.5936569,87.481,87.44,2.44212249]
[1773263271442,8.5936569,87.48,87.441,3.94440473]
[1773263271643,4.16636187,87.48,87.441,3.94440473]
[1773263271943,4.16636187,87.479,87.441,3.94440473]
[1773263273348,10.287,87.478,87.442,14.23640473]
[1773263274244,10.287,87.478,87.442,10.292]
[1773263274444,10.287,87.478,87.443,3.94440473]
[1773263275944,14.45336187,87.478,87.443,3.94440473]
[1773263277651,14.45336187,87.478,87.444,10.291]
[1773263279358,4.16636187,87.477,87.444,14.23540473]
[1773263279747,4.16636187,87.477,87.447,3.94440473]
[1773263279946,4.16636187,87.486,87.451,3.94440473]
[1773263281458,4.16636187,87.486,87.455,14.23440473]
[1773263282550,4.16636187,87.486,87.456,3.94440473]
[1773263285159,4.16636187,87.485,87.448,10.291]
[1773263285466,4.16636187,87.485,87.448,14.23540473]
[1773263286465,14.45336187,87.483,87.448,14.23540473]
[1773263287869,4.16636187,87.482,87.448,14.23540473]
[1773263288068,14.45336187,87.481,87.448,14.23540473]
[1773263288969,4.16636187,87.48,87.448,14.23540473]
[1773263296570,4.16636187,87.48,87.441,14.23640473]
[1773263296871,4.16636187,87.48,87.442,3.94440473]
[1773263298271,4.16636187,87.48,87.445,3.94440473]
[1773263298464,8.61128447,87.479,87.445,3.94440473]
[1773263298670,4.16636187,87.48,87.445,3.94440473]
[1773263298875,8.61128447,87.479,87.445,3.94440473]
[1773263299072,4.16636187,87.48,87.445,3.94440473]
[1773263299272,8.61128447,87.479,87.445,3.94440473]
[1773263299475,8.61128447,87.478,87.445,3.94440473]
[1773263299675,4.16636187,87.48,87.445,3.94440473]
[1773263299876,8.61469697,87.479,87.445,3.94440473]
[1773263300077,8.61469697,87.478,87.445,3.94440473]
[1773263300270,8.61525021,87.477,87.445,3.94440473]
[1773263300575,4.16636187,87.48,87.445,3.94440473]
[1773263300777,8.61530256,87.479,87.445,3.94440473]
[1773263300976,8.61530256,87.478,87.445,3.94440473]
[1773263301178,8.61530256,87.477,87.445,3.94440473]
[1773263301376,4.16636187,87.48,87.445,3.94440473]
[1773263301675,8.61600486,87.479,87.445,3.94440473]
[1773263301879,8.61600486,87.478,87.445,3.94440473]
[1773263302077,8.61600486,87.477,87.445,3.94440473]
[1773263302374,4.16636187,87.48,87.445,3.94440473]
[1773263302577,8.61681707,87.479,87.445,3.94440473]
[1773263302773,8.61681707,87.478,87.445,3.94440473]
[1773263302968,8.61681707,87.477,87.445,3.94440473]
[1773263303168,4.16636187,87.48,87.445,3.94440473]
[1773263303374,8.61770535,87.479,87.445,3.94440473]
[1773263303576,8.61770535,87.478,87.445,3.94440473]
[1773263303776,8.61770535,87.477,87.445,3.94440473]
[1773263303970,8.61770535,87.476,87.445,3.94440473]
[1773263304168,4.16636187,87.48,87.445,3.94440473]
[1773263304372,8.61886568,87.479,87.445,3.94440473]
[1773263304670,8.61886568,87.478,87.445,3.94440473]
[1773263304977,8.61886568,87.477,87.445,3.94440473]
[1773263305179,8.61886568,87.476,87.445,3.94440473]
[1773263305376,4.16636187,87.48,87.445,3.94440473]
[1773263305677,4.16636187,87.48,87.448,4.01213953]
[1773263305678,8.61946552,87.479,87.448,4.01213953]
[1773263305878,8.61946552,87.478,87.448,4.01213953]
[1773263306079,8.61946552,87.477,87.448,4.01213953]
[1773263306279,8.61946552,87.476,87.448,4.01213953]
[1773263306482,8.61946552,87.475,87.448,4.01213953]
[1773263306675,4.16636187,87.48,87.448,4.01213953]
[1773263306978,8.62026208,87.479,87.448,4.01213953]
[1773263307178,8.62026208,87.478,87.448,4.01213953]
[1773263307474,8.62026208,87.477,87.448,4.01213953]
[1773263307677,8.62026208,87.476,87.448,4.01213953]
[1773263307977,8.62026208,87.475,87.448,4.01213953]
[1773263308280,4.16636187,87.48,87.448,4.01213953]
[1773263308480,8.62171361,87.479,87.448,4.01213953]
[1773263308780,8.62171361,87.478,87.448,4.01213953]
[1773263308981,8.62171361,87.477,87.448,4.01213953]
[1773263309283,8.62171361,87.476,87.448,4.01213953]
[1773263309479,8.62171361,87.475,87.448,4.01213953]
[1773263309674,8.62171361,87.474,87.448,4.01213953]
[1773263309977,4.16636187,87.48,87.448,4.01213953]
[1773263310284,12.74503883,87.479,87.448,4.01213953]
[1773263310479,8.62272678,87.478,87.448,4.01213953]
[1773263310680,8.62272678,87.477,87.448,4.01213953]
[1773263310981,8.62272678,87.476,87.448,4.01213953]
[1773263311182,8.62272678,87.475,87.448,4.01213953]
[1773263311481,8.62272678,87.474,87.448,4.01213953]
[1773263311682,8.62272678,87.473,87.448,4.01213953]
[1773263311883,4.12231205,87.479,87.448,4.01213953]
[1773263312083,8.62308234,87.478,87.448,4.01213953]
[1773263312273,8.62308234,87.477,87.448,4.01213953]
[1773263312477,8.62308234,87.476,87.448,4.01213953]
[1773263312680,8.62308234,87.475,87.448,4.01213953]
[1773263312983,8.62308234,87.474,87.448,4.01213953]
[1773263313185,8.62308234,87.473,87.448,4.01213953]
[1773263313378,4.12231205,87.479,87.448,4.01213953]
[1773263313577,12.74574339,87.478,87.448,4.01213953]
[1773263313785,8.62343134,87.477,87.448,4.01213953]
[1773263314085,8.62343134,87.476,87.448,4.01213953]
[1773263314383,8.62343134,87.475,87.448,4.01213953]
[1773263314585,8.62343134,87.474,87.448,4.01213953]
[1773263314886,10.287,87.481,87.448,4.01213953]
[1773263315188,8.62347017,87.48,87.448,4.01213953]
[1773263315486,8.62347017,87.479,87.448,4.01213953]
[1773263315683,4.12231205,87.509,87.461,1.35532702]
[1773263315981,4.24041444,87.499,87.44,2.43945464]
[1773263317482,10.287,87.477,87.441,10.292]
[1773263318190,10.287,87.477,87.442,0.02562697]
[1773263320792,10.286,87.49,87.46,2.43945464]
[1773263321192,10.286,87.49,87.461,0.02463231]
[1773263321788,14.54277873,87.49,87.461,0.02463231]
[1773263323194,10.286,87.487,87.461,0.02463231]
[1773263323489,4.25129873,87.486,87.448,0.05122072]
[1773263324391,4.30310009,87.484,87.448,0.05122072]
[1773263325389,14.59023821,87.482,87.448,0.05122072]
[1773263328293,4.32111387,87.481,87.448,0.05122072]
[1773263328993,4.32111387,87.481,87.444,10.291]
[1773263329810,4.32111387,87.481,87.449,10.291]
[1773263330193,4.32111387,87.481,87.456,10.29]
[1773263330397,4.31479384,87.493,87.456,10.29]
[1773263330597,12.84270528,87.492,87.456,10.29]
[1773263330897,8.52791144,87.491,87.456,10.29]
[1773263331094,8.52791144,87.49,87.456,10.29]
[1773263331294,8.52791144,87.489,87.456,10.29]
[1773263331495,8.52791144,87.488,87.456,10.29]
[1773263331694,8.52791144,87.487,87.456,10.29]
[1773263331895,8.52791144,87.486,87.456,10.29]
[1773263332096,8.52791144,87.485,87.456,10.29]
[1773263332296,8.52791144,87.484,87.456,10.29]
[1773263332496,8.52791144,87.483,87.456,10.29]
[1773263332697,4.31479384,87.492,87.456,10.29]
[1773263333000,8.52730566,87.491,87.456,10.29]
[1773263333200,8.52730566,87.49,87.456,10.29]
[1773263333499,8.52730566,87.489,87.456,10.29]
[1773263333700,12.85265844,87.488,87.456,10.29]
[1773263333898,8.52730566,87.487,87.456,10.29]
[1773263334098,8.52730566,87.486,87.456,10.29]
[1773263334298,8.52730566,87.485,87.456,10.29]
[1773263334501,8.52730566,87.484,87.456,10.29]
[1773263334693,8.52730566,87.483,87.456,10.29]
[1773263334898,8.52730566,87.482,87.456,10.29]
[1773263335100,4.32535278,87.488,87.456,10.29]
[1773263335299,12.85016791,87.487,87.456,10.29]
[1773263335499,8.52711109,87.486,87.456,10.29]
[1773263335802,8.52711109,87.485,87.456,10.29]
[1773263336100,8.52711109,87.484,87.456,10.29]
[1773263336303,8.52711109,87.483,87.456,10.29]
[1773263336503,8.52711109,87.482,87.456,10.29]
[1773263336703,4.32305682,87.487,87.456,10.29]
[1773263336902,8.52701178,87.486,87.456,10.29]
[1773263337104,8.52701178,87.485,87.456,10.29]
[1773263337403,8.52701178,87.484,87.456,10.29]
[1773263337603,8.52701178,87.483,87.456,10.29]
[1773263337804,8.52701178,87.482,87.456,10.29]
[1773263338005,4.32305682,87.487,87.456,10.29]
[1773263338208,8.52699283,87.486,87.456,10.29]
[1773263338408,8.52699283,87.485,87.456,10.29]
[1773263338602,8.52699283,87.484,87.456,10.29]
[1773263338900,8.52699283,87.483,87.456,10.29]
[1773263339100,8.52699283,87.482,87.456,10.29]
[1773263339294,4.32305682,87.487,87.456,10.29]
[1773263339499,8.52700566,87.486,87.456,10.29]
[1773263339706,8.52700566,87.485,87.456,10.29]
[1773263339905,8.52700566,87.484,87.456,10.29]
[1773263340102,8.52700566,87.483,87.456,10.29]
[1773263340302,8.52700566,87.482,87.456,10.29]
[1773263340504,4.32305682,87.487,87.456,10.29]
[1773263340802,12.85637583,87.486,87.456,10.29]
[1773263341005,8.52697113,87.485,87.456,10.29]
[1773263341196,8.52697113,87.484,87.456,10.29]
[1773263341402,8.52697113,87.483,87.456,10.29]
[1773263341706,4.3294047,87.486,87.456,10.29]
[1773263342006,8.5268499,87.485,87.456,10.29]
[1773263342206,8.5268499,87.484,87.456,10.29]
[1773263342403,8.5268499,87.483,87.456,10.29]
[1773263342603,4.3294047,87.486,87.456,10.29]
[1773263342807,8.52681635,87.485,87.456,10.29]
[1773263343006,8.52681635,87.484,87.456,10.29]
[1773263343203,8.52681635,87.483,87.456,10.29]
[1773263343408,4.3294047,87.486,87.456,10.29]
[1773263343604,8.52679986,87.485,87.456,10.29]
[1773263343902,8.52679986,87.484,87.456,10.29]
[1773263344103,8.52679986,87.483,87.456,10.29]
[1773263344303,4.3294047,87.486,87.456,10.29]
[1773263344506,8.52680078,87.485,87.456,10.29]
[1773263344700,8.52680078,87.484,87.456,10.29]
[1773263344905,8.52680078,87.483,87.456,10.29]
[1773263345106,4.3294047,87.486,87.456,10.29]
[1773263345306,8.52680917,87.485,87.456,10.29]
[1773263345506,8.52680917,87.484,87.456,10.29]
[1773263345707,8.52680917,87.483,87.456,10.29]
[1773263345907,4.3294047,87.486,87.456,10.29]
[1773263346107,8.52681907,87.485,87.456,10.29]
[1773263346308,8.52681907,87.484,87.456,10.29]
[1773263346511,8.52681907,87.483,87.456,10.29]
[1773263346713,4.3294047,87.486,87.456,10.29]
[1773263346914,8.52685487,87.485,87.456,10.29]
[1773263347111,8.52685487,87.484,87.456,10.29]
[1773263347411,8.52685487,87.483,87.456,10.29]
[1773263347611,8.52685487,87.482,87.456,10.29]
[1773263347813,4.3294047,87.486,87.456,10.29]
[1773263348112,8.51109889,87.485,87.456,10.29]
[1773263348308,8.51109889,87.484,87.456,10.29]
[1773263348509,8.51109889,87.483,87.456,10.29]
[1773263348714,4.3294047,87.486,87.456,10.29]
[1773263349013,8.51106516,87.485,87.456,10.29]
[1773263349312,8.51106516,87.484,87.456,10.29]
[1773263349509,8.51106516,87.483,87.456,10.29]
[1773263349713,4.3294047,87.486,87.456,10.29]
[1773263350012,8.51115127,87.485,87.456,10.29]
[1773263350209,8.51115127,87.484,87.456,10.29]
[1773263350410,8.51115127,87.483,87.456,10.29]
[1773263350712,4.3294047,87.486,87.456,10.29]
[1773263350911,8.5112586,87.485,87.456,10.29]
[1773263351103,8.5112586,87.484,87.456,10.29]
[1773263351304,8.5112586,87.483,87.456,10.29]
[1773263351505,4.3294047,87.486,87.456,10.29]
[1773263351706,8.51146158,87.485,87.456,10.29]
[1773263351909,8.51146158,87.484,87.456,10.29]
[1773263352111,8.51146158,87.483,87.456,10.29]
[1773263352313,4.3294047,87.486,87.456,10.29]
[1773263352515,8.51169541,87.485,87.456,10.29]
[1773263352713,8.51169541,87.484,87.456,10.29]
[1773263353014,8.51169541,87.483,87.456,10.29]
[1773263353211,4.3294047,87.486,87.456,10.29]
[1773263353413,8.51187011,87.485,87.456,10.29]
[1773263353616,8.51187011,87.484,87.456,10.29]
[1773263353809,8.51187011,87.483,87.456,10.29]
[1773263354006,8.5120079,87.482,87.456,10.29]
[1773263354211,4.3294047,87.486,87.456,10.29]
[1773263354411,8.51223063,87.485,87.456,10.29]
[1773263354717,8.51223063,87.484,87.456,10.29]
[1773263354917,8.51223063,87.483,87.456,10.29]
[1773263355214,8.51223063,87.482,87.456,10.29]
[1773263355414,4.3294047,87.486,87.456,10.29]
[1773263355612,8.5124368,87.485,87.456,10.29]
[1773263355817,8.5124368,87.484,87.456,10.29]
[1773263356015,8.5124368,87.483,87.456,10.29]
[1773263356224,4.3294047,87.486,87.456,10.29]
[1773263356418,4.34721215,87.484,87.428,21.20948709]
[1773263356718,4.34721215,87.482,87.426,0.07723784]
[1773263357017,4.34721215,87.469,87.426,0.07723784]
[1773263357218,4.34721215,87.469,87.431,0.08220497]
[1773263358311,4.34721215,87.469,87.434,10.292]
[1773263360118,4.34721215,87.469,87.434,10.38029161]
[1773263365218,8.48017444,87.489,87.431,0.11743654]
[1773263365422,12.85608291,87.488,87.451,0.11743654]
[1773263365613,4.35184243,87.488,87.451,0.11743654]
[1773263366017,4.35184243,87.488,87.456,0.11743654]
[1773263367320,4.35184243,87.488,87.457,10.29]
[1773263368323,8.5026389,87.487,87.457,10.29]
[1773263368616,4.35184243,87.488,87.457,10.29]
[1773263368820,8.50264678,87.487,87.457,10.29]
[1773263369019,4.35184243,87.488,87.457,10.29]
[1773263369221,8.50277017,87.487,87.457,10.29]
[1773263369422,4.35184243,87.488,87.457,10.29]
[1773263369614,8.50259401,87.487,87.457,10.29]
[1773263369817,4.35184243,87.488,87.457,10.29]
[1773263370018,8.50259401,87.487,87.457,10.29]
[1773263370219,4.35184243,87.488,87.457,10.29]
[1773263370419,8.50253972,87.487,87.457,10.29]
[1773263370622,4.35184243,87.488,87.457,10.29]
[1773263370823,8.50253972,87.487,87.457,10.29]
[1773263371119,4.35184243,87.488,87.457,10.29]
[1773263371326,8.5026679,87.487,87.457,10.29]
[1773263371526,4.35184243,87.488,87.457,10.29]
[1773263371726,8.50248661,87.487,87.457,10.29]
[1773263371927,4.35184243,87.488,87.457,10.29]
[1773263372128,12.8449286,87.487,87.457,10.29]
[1773263372319,4.34244199,87.487,87.457,10.29]
[1773263373432,10.285,87.501,87.461,0.17074071]
[1773263373628,10.285,87.501,87.46,2.43866624]
[1773263373629,4.34286727,87.502,87.471,0.17074071]
[1773263374530,4.34286727,87.502,87.472,10.288]
[1773263376129,4.34286727,87.502,87.478,10.287]